bitfinex/quotes_SOLUSD_20251018
["timestamp","ask_amount","ask_price","bid_price","bid_amount"]
[1760794498781,0.71,185.95,185.88,5.79771537]
[1760794498976,0.71,185.94,185.88,17.39419058]
[1760794503774,0.71,185.94,185.89,10.87647521]
[1760794503976,0.71,185.94,185.9,0.41792361]
[1760794505179,0.71,185.93,185.86,23.3803641]
[1760794505388,0.71,185.92,185.86,23.79840348]
[1760794505596,0.71,185.92,185.87,0.69]
[1760794505787,0.71,185.92,185.88,0.69]
[1760794506097,0.69,185.91,185.86,24.48840348]
[1760794506492,0.69,185.9,185.86,24.48840348]
[1760794506872,0.69,185.89,185.84,34.67526362]
[1760794507077,5.49726357,185.97,185.84,23.79878841]
[1760794507283,0.69,185.89,185.84,24.48878841]
[1760794507994,0.69,185.89,185.84,23.79878841]
[1760794508292,0.69,185.88,185.8,0.53821313]
[1760794508499,0.12,185.87,185.79,0.5382421]
[1760794508698,0.69,185.86,185.76,16.1851582]
[1760794508883,0.81,185.85,185.75,0.638358]
[1760794509076,0.81,185.85,185.75,0.1]
[1760794510180,0.81,185.85,185.75,6.17356238]
[1760794510383,0.69,185.84,185.75,6.17356238]
[1760794510689,0.69,185.83,185.75,6.17356238]
[1760794511002,0.69,185.82,185.75,6.17356238]
[1760794511204,0.12,185.83,185.75,6.17356238]
[1760794511376,0.69,185.81,185.75,6.17356238]
[1760794513403,0.12,185.83,185.75,5.48356238]
[1760794513597,0.68,185.81,185.75,5.48356238]
[1760794514298,0.68,185.8,185.75,0.1]
[1760794514607,0.68,185.82,185.76,0.66]
[1760794515105,23.56,185.82,185.75,0.1]
[1760794515398,22.88,185.8,185.75,0.1]
[1760794515612,0.12,185.79,185.75,0.1]
[1760794515787,0.68,185.78,185.75,0.1]
[1760794516110,0.68,185.8,185.76,0.66]
[1760794516290,23.56,185.82,185.76,0.66]
[1760794517004,0.68,185.82,185.76,0.66]
[1760794517508,0.68,185.82,185.75,6.02191104]
[1760794517509,0.12,185.81,185.75,0.638358]
[1760794517712,0.68,185.8,185.75,0.1]
[1760794518280,0.12,185.81,185.75,0.1]
[1760794518480,0.68,185.8,185.75,0.1]
[1760794518684,0.68,185.79,185.75,0.1]
[1760794518905,0.68,185.78,185.75,0.1]
[1760794519202,0.68,185.77,185.75,0.1]
[1760794519411,0.68,185.8,185.75,0.1]
[1760794519591,0.68,185.79,185.75,0.1]
[1760794520311,0.12,185.81,185.75,0.1]
[1760794520517,0.68,185.78,185.75,0.1]
[1760794520925,0.68,185.81,185.76,0.66]
[1760794521213,23.0,185.83,185.75,0.1]
[1760794521397,0.68,185.8,185.75,0.1]
[1760794522824,0.12,185.79,185.75,0.1]
[1760794522996,0.68,185.78,185.75,0.1]
[1760794523196,0.12,185.77,185.75,0.1]
[1760794523408,0.68,185.76,185.75,0.1]
[1760794525515,0.68,185.78,185.75,0.1]
[1760794525711,23.56,185.8,185.75,0.1]
[1760794526020,0.68,185.79,185.75,0.1]
[1760794526222,0.68,185.78,185.75,0.1]
[1760794526407,0.68,185.77,185.75,0.1]
[1760794527724,0.12,185.78,185.75,0.1]
[1760794527904,0.68,185.76,185.75,0.1]
[1760794528524,0.12,185.78,185.75,0.1]
[1760794528719,0.68,185.8,185.75,0.1]
[1760794528918,0.68,185.8,185.75,0.76]
[1760794529125,23.0,185.82,185.76,0.66]
[1760794529313,0.8,185.82,185.76,0.66]
[1760794529924,23.68,185.82,185.75,0.1]
[1760794530627,0.8,185.82,185.75,0.1]
[1760794531331,29.06167751,185.82,185.75,0.1]
[1760794533533,22.88,185.78,185.75,0.1]
[1760794533737,0.12,185.77,185.75,0.1]
[1760794533916,0.68,185.76,185.75,0.1]
[1760794537719,23.0,185.78,185.75,0.1]
[1760794537922,23.68,185.78,185.75,0.1]
[1760794538130,22.88,185.79,185.75,0.1]
[1760794538417,0.68,185.8,185.76,0.66]
[1760794538622,0.68,185.82,185.76,0.66]
[1760794538931,0.8,185.81,185.75,0.1]
[1760794539325,0.8,185.81,185.75,0.76]
[1760794541440,0.12,185.81,185.75,6.14356967]
[1760794541620,23.0,185.82,185.76,0.66]
[1760794542332,0.68,185.81,185.75,0.1]
[1760794542536,0.68,185.81,185.75,0.76]
[1760794543327,0.12,185.82,185.75,6.1435247]
[1760794543624,0.12,185.82,185.76,0.68]
[1760794544031,0.68,185.83,185.76,19.21832902]
[1760794544239,0.68,185.83,185.77,0.68]
[1760794545326,0.68,185.83,185.77,6.06297093]
[1760794547250,0.68,185.83,185.77,0.68]
[1760794547553,0.68,185.82,185.76,18.0]
[1760794547725,0.8,185.81,185.76,18.0]
[1760794547925,0.12,185.81,185.76,18.68]
[1760794548226,0.68,185.81,185.77,0.68]
[1760794548425,0.68,185.81,185.76,18.0]
[1760794548622,0.68,185.81,185.76,18.68]
[1760794549545,0.68,185.8,185.76,0.68]
[1760794552350,0.68,185.82,185.77,0.68]
[1760794552647,0.12,185.81,185.77,0.68]
[1760794552830,0.68,185.81,185.77,0.68]
[1760794554049,23.68,185.8,185.75,0.1]
[1760794554237,0.68,185.79,185.75,0.1]
[1760794554434,0.8,185.78,185.75,0.1]
[1760794554644,0.68,185.78,185.75,0.1]
[1760794555651,0.12,185.79,185.75,0.1]
[1760794555852,0.68,185.77,185.75,0.1]
[1760794557047,0.8,185.79,185.75,0.1]
[1760794557432,0.68,185.78,185.75,0.1]
[1760794559055,0.12,185.8,185.75,0.1]
[1760794559244,0.68,185.79,185.75,0.1]
[1760794559445,0.68,185.78,185.75,0.1]
[1760794559758,0.8,185.8,185.75,0.1]
[1760794559942,0.8,185.8,185.75,0.78]
[1760794560254,0.8,185.8,185.76,0.68]
[1760794560557,0.8,185.8,185.75,0.1]
[1760794560558,0.68,185.79,185.75,0.1]
[1760794560751,0.68,185.79,185.75,0.78]
[1760794561054,0.68,185.79,185.75,0.1]
[1760794561534,0.68,185.78,185.75,0.1]
[1760794561941,0.68,185.81,185.75,0.78]
[1760794562639,23.56,185.81,185.75,0.78]
[1760794562847,0.12,185.8,185.75,0.1]
[1760794563035,0.68,185.79,185.75,0.1]
[1760794563236,0.12,185.78,185.75,0.1]
[1760794563456,0.68,185.77,185.75,0.1]
[1760794563780,0.68,185.76,185.75,0.1]
[1760794564051,0.8,185.76,185.75,0.1]
[1760794564253,0.8,185.76,185.69,0.1]
[1760794564649,22.88,185.72,185.69,0.1]
[1760794564848,0.8,185.71,185.69,0.1]
[1760794565054,0.68,185.7,185.69,0.1]
[1760794565433,23.58,185.73,185.69,0.1]
[1760794565647,0.12,185.72,185.69,0.1]
[1760794565853,0.7,185.71,185.69,0.1]
[1760794566066,0.82,185.7,185.69,0.1]
[1760794567348,23.7,185.7,185.69,0.1]
[1760794567839,0.82,185.7,185.69,0.1]
[1760794568943,23.7,185.7,185.69,0.1]
[1760794570562,6.20502961,185.7,185.69,0.1]
[1760794571352,0.82,185.7,185.69,0.1]
[1760794573365,0.83,185.7,185.69,0.1]
[1760794573740,0.12,185.7,185.69,0.1]
[1760794574160,22.88,185.71,185.69,0.1]
[1760794574469,0.12,185.72,185.69,0.82]
[1760794574871,0.12,185.72,185.69,0.1]
[1760794574872,23.0,185.72,185.69,0.1]
[1760794575048,0.71,185.71,185.69,0.1]
[1760794575364,0.12,185.7,185.69,0.1]
[1760794576247,0.83,185.73,185.69,0.82]
[1760794576980,0.83,185.73,185.69,0.1]
[1760794577166,0.83,185.73,185.69,0.82]
[1760794577483,2.81643194,185.76,185.7,0.72]
[1760794577764,0.83,185.79,185.71,0.53847396]
[1760794577947,51.90097586,185.87,185.72,0.72]
[1760794577948,2.81559354,185.81,185.72,0.72]
[1760794578153,0.12,185.8,185.73,0.53841598]
[1760794578352,0.12,185.8,185.74,0.72]
[1760794578543,0.12,185.83,185.75,0.538358]
[1760794578751,0.71,185.82,185.74,0.72]
[1760794578948,0.12,185.81,185.74,0.72]
[1760794579175,0.83,185.81,185.74,0.72]
[1760794579383,29.09191313,185.81,185.71,0.72]
[1760794579672,29.09191313,185.81,185.69,2.91520749]
[1760794579673,10.87647521,185.76,185.69,0.1]
[1760794579858,22.88,185.73,185.69,0.1]
[1760794580065,0.12,185.72,185.69,0.1]
[1760794580248,0.71,185.71,185.69,0.1]
[1760794580448,0.83,185.7,185.69,0.1]
[1760794580847,0.12,185.7,185.69,0.1]
[1760794581064,0.71,185.71,185.69,0.1]
[1760794581253,0.12,185.7,185.69,0.1]
[1760794581458,0.83,185.7,185.69,0.1]
[1760794581858,23.71,185.7,185.69,0.1]
[1760794582309,23.0,185.7,185.69,0.1]
[1760794583067,0.83,185.7,185.69,0.1]
[1760794583270,23.71,185.7,185.69,0.1]
[1760794584155,29.09502961,185.7,185.69,0.1]
[1760794585076,0.83,185.7,185.69,0.1]
[1760794585879,23.71,185.7,185.69,0.1]
[1760794586873,0.83,185.7,185.69,0.1]
[1760794587282,6.21502961,185.7,185.69,0.1]
[1760794587579,29.09502961,185.7,185.69,0.1]
[1760794587777,17.09150482,185.7,185.69,0.1]
[1760794588074,39.97150482,185.7,185.69,0.1]
[1760794588576,17.09150482,185.7,185.69,0.1]
[1760794588771,0.83,185.7,185.69,0.1]
[1760794588954,0.12,185.7,185.69,0.1]
[1760794590452,0.12,185.72,185.69,0.82]
[1760794590860,0.12,185.74,185.69,0.82]
[1760794591256,0.83,185.74,185.69,0.82]
[1760794592269,0.12,185.74,185.7,0.72]
[1760794592471,6.09245371,185.79,185.7,1.25850296]
[1760794592472,0.12,185.78,185.7,1.25850296]
[1760794592678,0.12,185.78,185.71,0.72]
[1760794592871,23.0,185.78,185.71,0.72]
[1760794593188,0.12,185.81,185.72,0.53844497]
[1760794593372,0.12,185.81,185.73,0.72]
[1760794593680,0.12,185.82,185.74,0.53838699]
[1760794593875,23.0,185.82,185.75,6.10357756]
[1760794594074,23.0,185.82,185.76,0.72]
[1760794594382,0.12,185.82,185.76,0.72]
[1760794594561,23.0,185.82,185.76,0.72]
[1760794595470,0.71,185.81,185.72,10.87647521]
[1760794595672,0.12,185.8,185.74,0.72]
[1760794597379,22.88,185.81,185.74,6.10383577]
[1760794597575,22.88,185.81,185.75,0.72]
[1760794597883,23.0,185.83,185.75,0.72]
[1760794598183,22.88,185.82,185.75,0.72]
[1760794598363,0.12,185.81,185.75,0.72]
[1760794600386,23.71,185.84,185.75,6.10343297]
[1760794600692,23.71,185.84,185.76,0.72]
[1760794600693,22.88,185.83,185.76,0.72]
[1760794600864,0.12,185.82,185.76,0.72]
[1760794601470,0.12,185.85,185.77,0.53830004]
[1760794601675,0.12,185.85,185.78,0.72]
[1760794601868,22.88,185.86,185.78,0.72]
[1760794602081,0.12,185.85,185.78,0.72]
[1760794602484,0.12,185.85,185.78,24.10255659]
[1760794602678,0.12,185.85,185.79,0.72]
[1760794603264,23.71,185.85,185.79,0.72]
[1760794603678,0.83,185.85,185.78,18.71]
[1760794605166,23.0,185.85,185.79,0.71]
[1760794605977,23.71,185.85,185.79,0.71]
[1760794606178,0.83,185.85,185.78,18.0]
[1760794606381,0.12,185.85,185.79,0.71]
[1760794606587,23.71,185.85,185.79,0.71]
[1760794609072,0.83,185.85,185.79,0.71]
[1760794610081,23.71,185.85,185.79,0.71]
[1760794610593,0.83,185.85,185.77,0.71]
[1760794611796,23.0,185.86,185.78,0.53827107]
[1760794612099,23.71,185.86,185.79,0.71]
[1760794615984,0.83,185.86,185.79,0.71]
[1760794616287,22.88,185.83,185.78,18.0]
[1760794616490,0.83,185.82,185.78,18.0]
[1760794616688,0.71,185.81,185.78,18.0]
[1760794616884,0.71,185.8,185.75,18.0]
[1760794617082,23.0,185.82,185.76,0.71]
[1760794617298,23.71,185.82,185.76,0.71]
[1760794618974,22.88,185.81,185.74,0.71]
[1760794619176,23.0,185.8,185.72,24.63263453]
[1760794619411,0.71,185.79,185.72,24.63263453]
[1760794619577,0.71,185.78,185.72,24.63286995]
[1760794620092,0.71,185.78,185.73,0.71]
[1760794620300,0.71,185.77,185.72,18.0]
[1760794620485,0.71,185.76,185.72,0.71]
[1760794620998,0.71,185.76,185.7,18.53850296]
[1760794621175,0.83,185.75,185.69,0.1]
[1760794621375,23.71,185.75,185.69,0.1]
[1760794622595,22.88,185.71,185.69,0.1]
[1760794622900,0.12,185.7,185.6,0.71]
[1760794623100,22.88,185.67,185.6,0.71]
[1760794623309,0.83,185.66,185.58,0.71]
[1760794623600,0.83,185.66,185.56,0.81]
[1760794623782,0.83,185.66,185.57,0.71]
[1760794625508,0.83,185.66,185.57,6.63748081]
[1760794625709,0.65,185.65,185.57,6.63748081]
[1760794625999,0.12,185.64,185.57,6.63748081]
[1760794626175,0.77,185.64,185.57,0.71]
[1760794626378,0.77,185.64,185.56,0.1]
[1760794626583,22.88,185.63,185.56,0.1]
[1760794626782,0.77,185.62,185.56,0.1]
[1760794630388,23.65,185.62,185.56,0.1]
[1760794631195,0.77,185.62,185.56,0.1]
[1760794631586,23.65,185.62,185.56,0.1]
[1760794632193,31.85577187,185.62,185.56,0.1]
[1760794632790,22.88,185.58,185.56,0.1]
[1760794632995,0.12,185.57,185.56,0.1]
[1760794633198,0.83,185.57,185.56,0.1]
[1760794633607,6.21880206,185.57,185.56,0.1]
[1760794634696,17.09527727,185.57,185.56,0.1]
[1760794637599,17.09527727,185.57,185.56,1e-08]
[1760794637792,24.05458921,185.57,185.56,1e-08]
[1760794640196,24.05458921,185.57,185.55,0.1]
[1760794640197,35.87647521,185.56,185.55,1e-08]
[1760794640398,44.83578714,185.56,185.55,1e-08]
[1760794640721,45.54578714,185.56,185.55,1e-08]
[1760794641104,50.61806934,185.56,185.55,1e-08]
[1760794642207,56.00716181,185.56,185.55,1e-08]
[1760794642716,29.00716182,185.56,185.55,1e-08]
[1760794643030,54.00716182,185.56,185.55,1e-08]
[1760794643699,72.22716181,185.56,185.55,1e-08]
[1760794644225,72.34716181,185.56,185.55,1e-08]
[1760794644895,10.87647521,185.52,185.5,0.1]
[1760794645093,35.99647521,185.51,185.5,0.1]
[1760794645315,36.70647521,185.51,185.5,0.1]
[1760794645710,25.0,185.49,185.47,0.1]
[1760794645912,33.75647521,185.46,185.31,0.63963628]
[1760794646105,22.88,185.38,185.31,0.1]
[1760794646423,33.87647521,185.38,185.35,0.7]
[1760794646631,10.87647521,185.37,185.35,0.7]
[1760794646803,22.88,185.34,185.31,0.1]
[1760794647332,0.12,185.36,185.31,0.1]
[1760794647622,23.0,185.36,185.32,0.7]
[1760794647806,23.0,185.36,185.33,0.7]
[1760794648011,22.88,185.35,185.33,0.7]
[1760794648226,0.12,185.34,185.31,0.1]
[1760794648599,23.0,185.37,185.31,0.1]
[1760794648911,0.12,185.36,185.32,0.7]
[1760794649412,0.12,185.36,185.33,0.7]
[1760794649618,0.12,185.36,185.34,0.7]
[1760794650211,10.99647521,185.36,185.31,0.8]
[1760794650403,22.88,185.33,185.31,0.8]
[1760794650598,0.12,185.32,185.31,0.1]
[1760794651017,0.12,185.32,185.31,0.8]
[1760794651224,0.12,185.36,185.31,0.8]
[1760794652210,0.12,185.37,185.31,0.8]
[1760794652720,23.0,185.37,185.31,0.8]
[1760794653413,0.12,185.37,185.31,0.8]
[1760794654225,0.12,185.38,185.31,6.1963598]
[1760794654424,0.12,185.38,185.32,0.7]
[1760794654608,0.12,185.44,185.32,0.7]
[1760794655025,22.88,185.43,185.32,0.7]
[1760794655206,0.12,185.42,185.34,10.87647521]
[1760794655410,0.12,185.46,185.35,0.7]
[1760794655631,22.88,185.44,185.35,1.23951982]
[1760794655818,0.12,185.43,185.36,0.7]
[1760794656014,0.12,185.47,185.37,11.41593682]
[1760794656337,0.12,185.5,185.39,10.87647521]
[1760794656500,0.12,185.53,185.41,10.87647521]
[1760794656704,0.12,185.53,185.42,0.7]
[1760794656912,0.12,185.53,185.43,10.87647521]
[1760794657123,22.88,185.52,185.44,0.7]
[1760794657325,22.88,185.5,185.44,0.7]
[1760794657527,22.88,185.48,185.41,0.7]
[1760794657705,0.12,185.47,185.41,0.7]
[1760794657908,0.83,185.47,185.36,0.53949072]
[1760794658111,0.83,185.47,185.39,0.7]
[1760794658704,22.88,185.43,185.36,0.7]
[1760794658908,0.12,185.42,185.36,0.7]
[1760794659124,23.0,185.42,185.36,0.7]
[1760794659723,22.88,185.4,185.36,0.7]
[1760794660035,0.12,185.39,185.36,0.7]
[1760794660234,0.12,185.39,185.37,0.7]
[1760794660407,0.12,185.42,185.37,0.7]
[1760794660614,0.12,185.42,185.38,0.7]
[1760794660813,0.12,185.42,185.31,6.03597148]
[1760794660814,0.12,185.42,185.39,0.7]
[1760794661311,0.12,185.42,185.4,0.7]
[1760794661541,0.12,185.43,185.4,0.7]
[1760794661840,0.12,185.43,185.41,0.7]
[1760794662202,0.12,185.43,185.35,5.93466841]
[1760794662417,0.12,185.44,185.42,0.7]
[1760794662618,0.71,185.44,185.37,0.7]
[1760794662906,0.12,185.43,185.37,0.7]
[1760794663723,0.12,185.45,185.37,0.7]
[1760794664113,23.0,185.45,185.37,0.7]
[1760794664515,0.12,185.45,185.37,0.7]
[1760794664820,22.88,185.43,185.37,0.7]
[1760794665017,0.12,185.42,185.37,0.7]
[1760794665323,22.88,185.44,185.37,0.7]
[1760794665504,0.12,185.48,185.38,11.41590772]
[1760794665710,0.12,185.52,185.4,10.87647521]
[1760794665934,0.12,185.52,185.42,10.87647521]
[1760794666232,22.88,185.51,185.42,10.87647521]
[1760794666413,0.12,185.5,185.43,0.7]
[1760794666813,0.12,185.5,185.44,10.87647521]
[1760794667016,0.12,185.5,185.45,0.7]
[1760794667338,0.12,185.51,185.46,0.7]
[1760794667528,23.67,185.51,185.46,0.7]
[1760794667928,23.67,185.51,185.41,10.87647521]
[1760794668235,23.67,185.51,185.46,0.7]
[1760794668609,0.12,185.51,185.47,0.7]
[1760794668814,0.12,185.52,185.47,0.7]
[1760794669015,0.12,185.52,185.42,5.9323458]
[1760794669016,0.79,185.52,185.42,5.9323458]
[1760794669235,0.79,185.52,185.43,0.7]
[1760794669723,23.67,185.52,185.43,0.7]
[1760794670320,23.0,185.52,185.43,0.7]
[1760794670524,23.0,185.52,185.43,6.09285019]
[1760794670831,23.67,185.52,185.44,0.7]
[1760794671719,23.0,185.52,185.44,0.7]
[1760794672112,2.81971012,185.53,185.45,11.41570411]
[1760794672113,25.69971012,185.53,185.45,11.41570411]
[1760794672312,0.12,185.55,185.46,0.7]
[1760794672532,0.12,185.55,185.46,24.0917221]
[1760794672713,0.12,185.55,185.47,0.7]
[1760794673414,23.0,185.55,185.47,0.7]
[1760794673835,0.12,185.55,185.47,19.23917075]
[1760794674043,0.67,185.54,185.47,18.0]
[1760794674229,0.12,185.53,185.47,18.0]
[1760794674544,0.67,185.52,185.47,18.0]
[1760794674714,0.79,185.51,185.44,0.7]
[1760794674911,0.79,185.51,185.44,18.7]
[1760794675733,0.12,185.51,185.45,11.57647521]
[1760794675944,0.12,185.53,185.46,0.7]
[1760794676119,0.67,185.52,185.46,0.7]
[1760794676311,0.12,185.51,185.46,0.7]
[1760794676517,0.67,185.5,185.44,18.0]
[1760794676742,0.12,185.49,185.45,0.7]
[1760794676947,0.12,185.52,185.45,12.11570411]
[1760794677123,0.12,185.55,185.46,11.57647521]
[1760794677437,0.12,185.55,185.48,10.87647521]
[1760794677621,0.12,185.57,185.48,10.87647521]
[1760794677816,0.12,185.57,185.5,10.87647521]
[1760794678346,22.88,185.6,185.51,0.7]
[1760794678533,0.12,185.59,185.52,10.87647521]
[1760794678731,0.12,185.61,185.53,0.7]
[1760794679050,0.12,185.61,185.54,10.87647521]
[1760794679340,2.81854076,185.62,185.55,1.23893829]
[1760794679646,0.12,185.64,185.56,0.7]
[1760794679950,3.60787773,185.67,185.56,0.7]
[1760794680125,26.48787773,185.67,185.56,0.7]
[1760794680328,22.88,185.66,185.56,1.23890924]
[1760794680528,0.12,185.65,185.58,10.87647521]
[1760794680821,23.0,185.65,185.59,0.7]
[1760794681038,0.12,185.65,185.59,0.7]
[1760794681423,2.81787773,185.67,185.59,0.7]
[1760794681620,0.79,185.69,185.6,0.5387931]
[1760794681823,0.12,185.69,185.61,0.7]
[1760794682041,23.0,185.69,185.62,0.53873505]
[1760794682245,23.0,185.69,185.63,0.7]
[1760794682736,0.12,185.71,185.64,0.538677]
[1760794682948,0.12,185.74,185.65,0.7]
[1760794683116,22.88,185.73,185.65,0.7]
[1760794683319,0.87,185.75,185.65,0.7]
[1760794683320,0.12,185.72,185.65,0.7]
[1760794683520,0.12,185.74,185.65,0.7]
[1760794683743,0.79,185.74,185.65,0.7]
[1760794683950,0.12,185.74,185.65,0.7]
[1760794684451,22.88,185.73,185.65,0.7]
[1760794684633,0.12,185.72,185.65,0.7]
[1760794684831,22.88,185.73,185.66,11.41509419]
[1760794685147,0.2,185.75,185.68,10.87647521]
[1760794685329,0.2,185.75,185.69,1.23853196]
[1760794685521,0.2,185.75,185.7,0.66]
[1760794685721,0.2,185.75,185.71,0.53847396]
[1760794686253,0.2,185.75,185.72,0.66]
[1760794686443,0.2,185.75,185.69,0.66]
[1760794687019,0.2,185.75,185.7,11.41497817]
[1760794687363,0.2,185.75,185.71,0.66]
[1760794687544,0.2,185.75,185.72,0.66]
[1760794687742,0.2,185.75,185.73,0.66]
[1760794687925,0.2,185.75,185.74,0.66]
[1760794688845,0.2,185.75,185.7,11.41497817]
[1760794689037,0.2,185.75,185.71,0.66]
[1760794689344,0.2,185.75,185.72,0.66]
[1760794689546,0.2,185.75,185.73,0.66]
[1760794691552,0.2,185.75,185.74,11.53647521]
[1760794692848,0.2,185.75,185.74,0.66]
[1760794693637,0.2,185.75,185.72,10.87647521]
[1760794693838,0.2,185.75,185.73,0.67]
[1760794694231,0.2,185.75,185.68,0.53856096]
[1760794694430,0.2,185.75,185.67,34.29494917]
[1760794694431,0.87,185.75,185.7,10.87647521]
[1760794694645,0.2,185.75,185.71,0.67]
[1760794695145,0.2,185.75,185.67,0.53858997]
[1760794695324,0.2,185.75,185.69,10.87647521]
[1760794695733,0.12,185.74,185.69,11.54647521]
[1760794696046,0.67,185.74,185.69,11.54647521]
[1760794696551,23.2,185.75,185.7,0.67]
[1760794696746,0.67,185.74,185.68,11.54647521]
[1760794697043,0.79,185.73,185.66,10.87647521]
[1760794697235,22.88,185.72,185.66,10.87647521]
[1760794697430,0.12,185.71,185.65,0.67]
[1760794697962,0.12,185.71,185.62,11.54647521]
[1760794697963,0.67,185.7,185.62,11.54647521]
[1760794698122,0.79,185.69,185.59,1.20882213]
[1760794698328,0.67,185.68,185.55,5.38938291]
[1760794698524,0.12,185.7,185.61,10.87647521]
[1760794698744,22.88,185.72,185.62,1.20873505]
[1760794698939,0.12,185.71,185.64,10.87647521]
[1760794699137,0.67,185.7,185.64,0.67]
[1760794699432,0.12,185.69,185.64,0.67]
[1760794699631,0.79,185.69,185.64,0.67]
[1760794700446,23.67,185.69,185.64,0.67]
[1760794700644,22.88,185.69,185.65,0.67]
[1760794700846,0.32,185.75,185.66,0.67]
[1760794701034,22.88,185.71,185.66,0.67]
[1760794701352,22.88,185.71,185.67,0.67]
[1760794701551,0.12,185.74,185.68,0.67]
[1760794702538,0.12,185.74,185.65,0.67]
[1760794702539,0.67,185.73,185.65,0.67]
[1760794702745,23.0,185.72,185.65,0.67]
[1760794702944,0.67,185.71,185.65,0.67]
[1760794703655,0.12,185.7,185.65,0.67]
[1760794703846,0.79,185.7,185.65,0.67]
[1760794704044,0.12,185.71,185.66,0.67]
[1760794704650,23.0,185.71,185.66,0.67]
[1760794704857,23.67,185.71,185.66,0.67]
[1760794705144,0.12,185.73,185.67,0.67]
[1760794705354,23.0,185.73,185.67,0.67]
[1760794705559,23.67,185.73,185.67,0.67]
[1760794706253,0.79,185.73,185.67,0.67]
[1760794708164,0.2,185.75,185.68,10.87647521]
[1760794708346,0.2,185.75,185.7,10.87647521]
[1760794708754,0.2,185.75,185.71,0.67]
[1760794708952,0.2,185.75,185.72,0.67]
[1760794709156,0.87,185.75,185.69,0.67]
[1760794709884,0.2,185.75,185.7,10.87647521]
[1760794710069,0.2,185.75,185.71,0.67]
[1760794710652,0.79,185.74,185.68,10.87647521]
[1760794710856,0.79,185.74,185.68,11.54647521]
[1760794711058,23.08,185.75,185.7,10.87647521]
[1760794711242,0.2,185.75,185.71,0.67]
[1760794711563,0.2,185.75,185.72,0.67]
[1760794715553,0.2,185.75,185.73,0.67]
[1760794715754,0.2,185.75,185.74,0.67]
[1760794716259,0.87,185.75,185.71,10.87647521]
[1760794716583,0.87,185.75,185.71,0.67]
[1760794716955,0.2,185.75,185.71,0.67]